Workbook

Sheet Table S1
A1: Table S1. All samples with I35T
A2: I35T in other tumours | C2: Gene | D2: CDS Mutation | E2: AA Mutation | F2: COSMIC number/ Sample name | G2: Tissue | H2: Cell type | I2: Linked paper | K2: PubMed ID
B3: 1 | C3: CTNNB1 | D3: c.104T>C | E3: p.I35T | F3: 2579336 | G3: Skin | H3: Malignant melanoma | I3: Siroy AE et al | J3: 2014 | K3: 25148578
B4: 2 | C4: CTNNB1 | D4: c.104T>C | E4: p.I35T | F4: 2293769 | G4: Adrenal gland | H4: Adrenal cortical carcinoma | I4: Assié G et al | J4: 2014 | K4: 24747642
B5: 3 | C5: CTNNB1 | D5: c.104T>C | E5: p.I35T | F5: 1714145 | G5: Kidney | H5: Wilms tumour | I5: Scott RH et al | J5: 2012 | K5: 22470196
B6: 4 | C6: CTNNB1 | D6: c.104T>C | E6: p.I35T | F6: PAJMMZ | G6: Kidney | H6: Wilms tumour | I6: Gadd S et al | J6: 2017 | K6: 28825729
B7: 5 | C7: CTNNB1 | D7: c.104T>C | E7: p.I35T | F7: Patient7234 (cBioPortal) | G7: N/A | H7: Rhabdomyosarcoma | I7: N/A | J7: N/A | K7: N/A
A8: I35T in SG (from COSMIC) | B8: 6 | C8: CTNNB1 | D8: c.104T>C | E8: p.I35T | F8: 914546 | G8: Salivary gland | H8: Adenoid cystic carcinoma | I8: Daa T et al | J8: 2004 | K8: 15195113
B9: 7 | C9: CTNNB1 | D9: c.104T>C | E9: p.I35T | F9: 1042323 | G9: Salivary gland | H9: Adenoid cystic carcinoma | I9: Daa T et al | J9: 2005 | K9: 15943036
B10: 8 | C10: CTNNB1 | D10: c.104T>C | E10: p.I35T | F10: 1585378 | G10: Parotid gland | H10: Basal cell adenoma | I10: Kawahara A et al | J10: 2011 | K10: 21323741
B11: 9 | C11: CTNNB1 | D11: c.104T>C | E11: p.I35T | F11: 1585379 | G11: Parotid gland | H11: Basal cell adenoma
B12: 10 | C12: CTNNB1 | D12: c.104T>C | E12: p.I35T | F12: 1585380 | G12: Parotid gland | H12: Basal cell adenoma
B13: 11 | C13: CTNNB1 | D13: c.104T>C | E13: p.I35T | F13: 1585383 | G13: Parotid gland | H13: Basal cell adenoma
B14: 12 | C14: CTNNB1 | D14: c.104T>C | E14: p.I35T | F14: 1585385 | G14: Parotid gland | H14: Basal cell adenoma
B15: 13 | C15: CTNNB1 | D15: c.104T>C | E15: p.I35T | F15: 1585386 | G15: Parotid gland | H15: Basal cell adenoma
B16: 14 | C16: CTNNB1 | D16: c.104T>C | E16: p.I35T | F16: 1585390 | G16: Parotid gland | H16: Basal cell adenoma
B17: 15 | C17: CTNNB1 | D17: c.104T>C | E17: p.I35T | F17: 1585392 | G17: Parotid gland | H17: Basal cell adenoma
B18: 16 | C18: CTNNB1 | D18: c.104T>C | E18: p.I35T | F18: 1585393 | G18: Parotid gland | H18: Basal cell adenoma
B19: 17 | C19: CTNNB1 | D19: c.104T>C | E19: p.I35T | F19: 1585395 | G19: Parotid gland | H19: Basal cell adenoma
B20: 18 | C20: CTNNB1 | D20: c.104T>C | E20: p.I35T | F20: 2377960 | G20: Parotid gland | H20: Epithelial-myoepithelial carcinoma | I20: Grünewald I et al | J20: 2015 | K20: 26053092
B21: 19 | C21: CTNNB1 | D21: c.104T>C | E21: p.I35T | F21: 2564418 | G21: Parotid gland | H21: Basal cell adenoma | I21: Wilson TC et al | J21: 2016 | K21: 27224988
B22: 20 | C22: CTNNB1 | D22: c.104T>C | E22: p.I35T | F22: 2564419 | G22: Parotid gland | H22: Basal cell adenoma
B23: 21 | C23: CTNNB1 | D23: c.104T>C | E23: p.I35T | F23: 2564420 | G23: Parotid gland | H23: Basal cell adenoma
B24: 22 | C24: CTNNB1 | D24: c.104T>C | E24: p.I35T | F24: 2602673 | G24: Salivary gland | H24: Basal cell adenoma | I24: Jo VY et al | J24: 2016 | K24: 27259009
B25: 23 | C25: CTNNB1 | D25: c.104T>C | E25: p.I35T | F25: 2602675 | G25: Salivary gland | H25: Basal cell adenoma
B26: 24 | C26: CTNNB1 | D26: c.104T>C | E26: p.I35T | F26: 2602676 | G26: Salivary gland | H26: Basal cell adenoma
B27: 25 | C27: CTNNB1 | D27: c.104T>C | E27: p.I35T | F27: 2602677 | G27: Salivary gland | H27: Basal cell adenoma
B28: 26 | C28: CTNNB1 | D28: c.104T>C | E28: p.I35T | F28: 2729046 | G28: Parotid gland | H28: Basal cell adenoma | I28: Sato M et al | J28: 2018 | K28: 29496310
B29: 27 | C29: CTNNB1 | D29: c.104T>C | E29: p.I35T | F29: 2729047 | G29: Parotid gland | H29: Basal cell adenoma
B30: 28 | C30: CTNNB1 | D30: c.104T>C | E30: p.I35T | F30: 2729048 | G30: Parotid gland | H30: Basal cell adenoma
B31: 29 | C31: CTNNB1 | D31: c.104T>C | E31: p.I35T | F31: 2729049 | G31: Parotid gland | H31: Basal cell adenoma
B32: 30 | C32: CTNNB1 | D32: c.104T>C | E32: p.I35T | F32: 2729050 | G32: Parotid gland | H32: Basal cell adenoma
B33: 31 | C33: CTNNB1 | D33: c.104T>C | E33: p.I35T | F33: 2729051 | G33: Parotid gland | H33: Basal cell adenoma
B34: 32 | C34: CTNNB1 | D34: c.104T>C | E34: p.I35T | F34: 2729052 | G34: Parotid gland | H34: Basal cell adenoma
B35: 33 | C35: CTNNB1 | D35: c.104T>C | E35: p.I35T | F35: 2729053 | G35: Parotid gland | H35: Basal cell adenoma
B36: 34 | C36: CTNNB1 | D36: c.104T>C | E36: p.I35T | F36: 2729054 | G36: Parotid gland | H36: Basal cell adenoma
B37: 35 | C37: CTNNB1 | D37: c.104T>C | E37: p.I35T | F37: 2729055 | G37: Parotid gland | H37: Basal cell adenoma
B38: 36 | C38: CTNNB1 | D38: c.104T>C | E38: p.I35T | F38: 2729056 | G38: Parotid gland | H38: Basal cell adenoma
B39: 37 | C39: CTNNB1 | D39: c.104T>C | E39: p.I35T | F39: 2729057 | G39: Parotid gland | H39: Basal cell adenoma
B40: 38 | C40: CTNNB1 | D40: c.104T>C | E40: p.I35T | F40: 2729058 | G40: Parotid gland | H40: Basal cell adenoma
B41: 39 | C41: CTNNB1 | D41: c.104T>C | E41: p.I35T | F41: 2729080 | G41: Parotid gland | H41: Basal cell adenocarcinoma
A42: I35T in SG (from literature) | B42: 40 | C42: CTNNB1 | D42: c.104T>C | E42: p.I35T | F42: BCA 1 | G42: Parotid gland | H42: Basal cell adenoma | I42: Lee et al | J42: 2018 | K42: 29224720
B43: 41 | C43: CTNNB1 | D43: c.104T>C | E43: p.I35T | F43: BCA 2 | G43: Parotid gland | H43: Basal cell adenoma
B44: 42 | C44: CTNNB1 | D44: c.104T>C | E44: p.I35T | F44: BCA 3 | G44: Parotid gland | H44: Basal cell adenoma
B45: 43 | C45: CTNNB1 | D45: c.104T>C | E45: p.I35T | F45: BCA 6 | G45: Parotid gland | H45: Basal cell adenoma
B46: 44 | C46: CTNNB1 | D46: c.104T>C | E46: p.I35T | F46: BCA 9 | G46: Parotid gland | H46: Basal cell adenoma
B47: 45 | C47: CTNNB1 | D47: c.104T>C | E47: p.I35T | F47: BCA 11 | G47: Parotid gland | H47: Basal cell adenoma
B48: 46 | C48: CTNNB1 | D48: c.104T>C | E48: p.I35T | F48: BCA 15 | G48: Parotid gland | H48: Basal cell adenoma
B49: 47 | C49: CTNNB1 | D49: c.104T>C | E49: p.I35T | F49: BCA 16 | G49: Parotid gland | H49: Basal cell adenoma
B50: 48 | C50: CTNNB1 | D50: c.104T>C | E50: p.I35T | F50: BCA 18 | G50: Parotid gland | H50: Basal cell adenoma
B51: 49 | C51: CTNNB1 | D51: c.104T>C | E51: p.I35T | F51: BCA 19 | G51: Parotid gland | H51: Basal cell adenoma
B52: 50 | C52: CTNNB1 | D52: c.104T>C | E52: p.I35T | F52: BCA 20 | G52: Parotid gland | H52: Basal cell adenoma
B53: 51 | C53: CTNNB1 | D53: c.104T>C | E53: p.I35T | F53: BCA 21 | G53: Parotid gland | H53: Basal cell adenoma
B54: 52 | C54: CTNNB1 | D54: c.104T>C | E54: p.I35T | F54: BCA 22 | G54: Parotid gland | H54: Basal cell adenoma
B55: 53 | C55: CTNNB1 | D55: c.104T>C | E55: p.I35T | F55: BCA 23 | G55: Parotid gland | H55: Basal cell adenoma
B56: 54 | C56: CTNNB1 | D56: c.104T>C | E56: p.I35T | F56: BCA 29 | G56: Parotid gland | H56: Basal cell adenoma
B57: 55 | C57: CTNNB1 | D57: c.104T>C | E57: p.I35T | F57: BCA 30 | G57: Parotid gland | H57: Basal cell adenoma
B58: 56 | C58: CTNNB1 | D58: c.104T>C | E58: p.I35T | F58: BCA 31 | G58: Parotid gland | H58: Basal cell adenoma
B59: 57 | C59: CTNNB1 | D59: c.104T>C | E59: p.I35T | F59: BCA 32 | G59: Parotid gland | H59: Basal cell adenoma
B60: 58 | C60: CTNNB1 | D60: c.104T>C | E60: p.I35T | F60: BCA 36 | G60: Parotid gland | H60: Basal cell adenoma
B61: 59 | C61: CTNNB1 | D61: c.104T>C | E61: p.I35T | F61: BCA 38 | G61: Parotid gland | H61: Basal cell adenoma
B62: 60 | C62: CTNNB1 | D62: c.104T>C | E62: p.I35T | F62: BCA 39 | G62: Parotid gland | H62: Basal cell adenoma
B63: 61 | C63: CTNNB1 | D63: c.104T>C | E63: p.I35T | F63: BCA 40 | G63: Parapharynx | H63: Basal cell adenoma
B64: 62 | C64: CTNNB1 | D64: c.104T>C | E64: p.I35T | F64: BCA 1 | G64: Parotid gland | H64: Basal cell adenoma | I64: Oyama et al | J64: 2018 | K64: 30053869
B65: 63 | C65: CTNNB1 | D65: c.104T>C | E65: p.I35T | F65: BCA 4 | G65: Parotid gland | H65: Basal cell adenoma
B66: 64 | C66: CTNNB1 | D66: c.104T>C | E66: p.I35T | F66: BCA 5 | G66: Parotid gland | H66: Basal cell adenoma
B67: 65 | C67: CTNNB1 | D67: c.104T>C | E67: p.I35T | F67: BCA 10 | G67: Parotid gland | H67: Basal cell adenoma
B68: 66 | C68: CTNNB1 | D68: c.104T>C | E68: p.I35T | F68: BCA 17 | G68: Parotid gland | H68: Basal cell adenoma
B69: 67 | C69: CTNNB1 | D69: c.104T>C | E69: p.I35T | F69: BCA 20 | G69: Parotid gland | H69: Basal cell adenoma
B70: 68 | C70: CTNNB1 | D70: c.104T>C | E70: p.I35T | F70: BCA 21 | G70: Parotid gland | H70: Basal cell adenoma
B71: 69 | C71: CTNNB1 | D71: c.104T>C | E71: p.I35T | F71: BCA 22 | G71: Parotid gland | H71: Basal cell adenoma
B72: 70 | C72: CTNNB1 | D72: c.104T>C | E72: p.I35T | F72: BCA 24 | G72: Parotid gland | H72: Basal cell adenoma
B73: 71 | C73: CTNNB1 | D73: c.104T>C | E73: p.I35T | F73: BCA 32 | G73: Parotid gland | H73: Basal cell adenoma
B74: 72 | C74: CTNNB1 | D74: c.104T>C | E74: p.I35T | F74: BCA 33 | G74: Parotid gland | H74: Basal cell adenoma
B75: 73 | C75: CTNNB1 | D75: c.104T>C | E75: p.I35T | F75: BCAC 1 | G75: Parotid gland | H75: Basal cell adenocarcinoma
B76: 74 | C76: CTNNB1 | D76: c.104T>C | E76: p.I35T | F76: BCAC 2 | G76: Parotid gland | H76: Basal cell adenocarcinoma
B77: 75 | C77: CTNNB1 | D77: c.104T>C | E77: p.I35T | F77: Case 2 | G77: Parotid gland | H77: Hyperplastic intercalated duct lesion | I77: McLean et al | J77: 2022 | K77: 36480093
B78: 76 | C78: CTNNB1 | D78: c.104T>C | E78: p.I35T | F78: Case 3 | G78: Parotid gland | H78: Hyperplastic intercalated duct lesion
B79: 77 | C79: CTNNB1 | D79: c.104T>C | E79: p.I35T | F79: Case 9 | G79: Parotid gland | H79: Hybrid intercalated duct lesion
B80: 78 | C80: CTNNB1 | D80: c.104T>C | E80: p.I35T | F80: N/A | G80: Parotid gland | H80: Basal cell adenoma | I80: Wong et al. | J80: 2024 | K80: Preprint: https://doi.org/10.1101/2024.10.21.619442
B81: 79 | C81: CTNNB1 | D81: c.104T>C | E81: p.I35T | G81: Parotid gland | H81: Basal cell adenoma
B82: 80 | C82: CTNNB1 | D82: c.104T>C | E82: p.I35T | G82: Parotid gland | H82: Basal cell adenoma
B83: 81 | C83: CTNNB1 | D83: c.104T>C | E83: p.I35T | G83: Parotid gland | H83: Basal cell adenoma
B84: 82 | C84: CTNNB1 | D84: c.104T>C | E84: p.I35T | G84: Parotid gland | H84: Basal cell adenoma
B85: 83 | C85: CTNNB1 | D85: c.104T>C | E85: p.I35T | G85: Parotid gland | H85: Basal cell adenoma
B86: 84 | C86: CTNNB1 | D86: c.104T>C | E86: p.I35T | G86: Parotid gland | H86: Basal cell adenoma
B87: 85 | C87: CTNNB1 | D87: c.104T>C | E87: p.I35T | G87: Parotid gland | H87: Basal cell adenoma
B88: 86 | C88: CTNNB1 | D88: c.104T>C | E88: p.I35T | G88: Parotid gland | H88: Basal cell adenoma
B89: 87 | C89: CTNNB1 | D89: c.104T>C | E89: p.I35T | G89: Parotid gland | H89: Basal cell adenoma
B90: 88 | C90: CTNNB1 | D90: c.104T>C | E90: p.I35T | G90: Parotid gland | H90: Basal cell adenoma
B91: 89 | C91: CTNNB1 | D91: c.104T>C | E91: p.I35T | G91: Parotid gland | H91: Basal cell adenoma
B92: 90 | C92: CTNNB1 | D92: c.104T>C | E92: p.I35T | G92: Parotid gland | H92: Basal cell adenoma
B93: 91 | C93: CTNNB1 | D93: c.104T>C | E93: p.I35T | G93: Parotid gland | H93: Basal cell adenoma
B94: 92 | C94: CTNNB1 | D94: c.104T>C | E94: p.I35T | G94: Parotid gland | H94: Basal cell adenoma
B95: 93 | C95: CTNNB1 | D95: c.104T>C | E95: p.I35T | G95: Parotid gland | H95: Basal cell adenoma
B96: 94 | C96: CTNNB1 | D96: c.104T>C | E96: p.I35T | G96: Parotid gland | H96: Basal cell adenoma
B97: 95 | C97: CTNNB1 | D97: c.104T>C | E97: p.I35T | G97: Parotid gland | H97: Basal cell adenoma
B98: 96 | C98: CTNNB1 | D98: c.104T>C | E98: p.I35T | G98: Parotid gland | H98: Basal cell adenoma
B99: 97 | C99: CTNNB1 | D99: c.104T>C | E99: p.I35T | G99: Parotid gland | H99: Basal cell adenoma
B100: 98 | C100: CTNNB1 | D100: c.104T>C | E100: p.I35T | G100: Parotid gland | H100: Basal cell adenoma
B101: 99 | C101: CTNNB1 | D101: c.104T>C | E101: p.I35T | G101: Parotid gland | H101: Basal cell adenoma
B102: 100 | C102: CTNNB1 | D102: c.104T>C | E102: p.I35T | G102: Submandibular gland | H102: Basal cell adenoma
B103: 101 | C103: CTNNB1 | D103: c.104T>C | E103: p.I35T | G103: Submandibular gland | H103: Basal cell adenoma
B104: 102 | C104: CTNNB1 | D104: c.104T>C | E104: p.I35T | G104: Cheek | H104: Basal cell adenoma
B105: 103 | C105: CTNNB1 | D105: c.104T>C | E105: p.I35T | G105: Parotid gland | H105: Basal cell adenocarcinoma/ Epithelial-myoepithelial carcinoma | L105: Tumour also had HRAS, KMT2D, PIK3CA and ARID1A and biallelic MLH1 variants
C109: IDH = 3/103 = 2.9% | D109: BCA = 88/103 = 85.4% | E109: BCAC = 4/103 = 3.9% | F109: SG tumours = 98/103 = 95.1%

Sheet Table S2
B1: Table S2. CTNNB1 variants in salivary gland (SG) tumours
D2: Basal Cell Adenoma (BCA) | I2: Basal Cell Adenocarcinoma (BCAC) | N2: Intercalated Duct Hyperplasia (IDH) | S2: Adenoid Cystic Carcinoma (ACC) | X2: Pleomorphic adenoma (PA) | AC2: Other SG tumours | AF2: Grand Total I35T | AG2: Grand Total Samples with CTNNB1 var. | AH2: Grand Total N.o of samples tested | AI2: N.o of I35T/Grand Total Samples with CTNNB1 var. | AK2: N.o of I35T/Grand total of samples tested
B3: References | C3: PubMed ID | D3: I35T | E3: Other CTNNB1 var. | F3: Total n.o BCA samples tested | G3: % I35T/Total CTNNB1-mutated samples | H3: % I35T/Total BCA samples | I3: I35T | J3: Other CTNNB1 var. | K3: Total n.o BCAC samples tested | L3: % I35T/Total CTNNB1-mutated samples | M3: % I35T/Total BCAC samples | N3: I35T | O3: Other CTNNB1 var. | P3: Total n.o IDH samples tested | Q3: % I35T/Total CTNNB1-mutated samples | R3: % I35T/Total IDH samples | S3: I35T | T3: Samples with other CTNNB1 var. | U3: Total n.o ACC samples tested | V3: % I35T/Total CTNNB1-mutated samples | W3: % I35T/Total ACC samples | X3: I35T | Y3: Samples with other CTNNB1 var. | Z3: Total n.o PA samples tested | AA3: % I35T/Total CTNNB1-mutated samples | AB3: % I35T/Total PA samples | AC3: I35T | AD3: Samples with other CTNNB1 var. | AE3: Total n.o SG samples tested
A4: Papers with at least 1 I35T sample | B4: Daa et al. (2004) | C4: 15195113 | D4: N/A | I4: N/A | N4: N/A | S4: 1 | T4: 0 | U4: 20 | V4: =S4/(S4+T4) -> 1 | W4: =S4/U4 -> 0.05 | X4: N/A | AC4: N/A | AF4: 1 | AG4: 1 | AH4: 20 | AI4: 1/1 | AJ4: =AF4/AG4 -> 1 | AK4: 1/20 | AL4: =AF4/AH4 -> 0.05
B5: Daa et al. (2005) | C5: 15943036 | D5: N/A | I5: N/A | N5: N/A | S5: 1 | T5: 0 | U5: 23 | V5: =S5/(S5+T5) -> 1 | W5: =S5/U5 -> 0.04347826087 | X5: N/A | AC5: N/A | AF5: 1 | AG5: 1 | AH5: 23 | AI5: 1/1 | AJ5: 1 | AK5: 1/23 | AL5: 0.04347826087
B6: Kawahara et al. (2011) | C6: 21323741 | D6: 10 | E6: 1 | F6: 22 | G6: =D6/(D6+E6) -> 0.9090909091 | H6: =D6/F6 -> 0.4545454545 | I6: N/A | N6: N/A | S6: N/A | X6: N/A | AC6: N/A | AF6: 10 | AG6: =D6+E6 -> 11 | AH6: 22 | AI6: 10/11 | AJ6: 0.9090909091 | AK6: 10/22 | AL6: 0.4545454545
B7: Grünewald et al. (2015) | C7: 26053092 | D7: N/A | I7: 0 | J7: 0 | K7: 4 | L7: 0 | M7: =I7/K7 -> 0 | N7: N/A | S7: N/A | X7: N/A | AC7: 1 | AD7: 0 | AE7: 80 | AF7: 1 | AG7: 1 | AH7: =K7+AE7 -> 84 | AI7: 1/1 | AJ7: 1 | AK7: 1/84 | AL7: 0.0119047619
B8: Wilson et al. (2016) | C8: 27224988 | D8: 3 | E8: 0 | F8: 8 | G8: =D8/(D8+E8) -> 1 | H8: =D8/F8 -> 0.375 | I8: 0 | J8: 0 | K8: 9 | L8: 0 | M8: 0 | N8: N/A | S8: N/A | X8: N/A | AC8: N/A | AF8: 3 | AG8: 3 | AH8: =F8+K8 -> 17 | AI8: 3/3 | AJ8: 1 | AK8: 3/17 | AL8: 0.1764705882
B9: Jo Vy et al. (2016) | C9: 27259009 | D9: 4 | E9: 0 | F9: 5 | G9: =D9/(D9+E9) -> 1 | H9: =D9/F9 -> 0.8 | I9: 0 | J9: 0 | K9: 1 | L9: 0 | M9: 0 | N9: N/A | S9: N/A | X9: N/A | AC9: N/A | AF9: 4 | AG9: 4 | AH9: =F9+K9 -> 6 | AI9: 4/4 | AJ9: 1 | AK9: 4/6 | AL9: 0.6666666667
B10: Lee et al. (2018) | C10: 29224720 | D10: 22 | E10: 2 | F10: 40 | G10: =D10/(D10+E10) -> 0.9166666667 | H10: =D10/F10 -> 0.55 | I10: 0 | J10: 0 | K10: 2 | L10: 0 | M10: 0 | N10: N/A | S10: N/A | X10: N/A | AC10: N/A | AF10: 22 | AG10: =D10+E10 -> 24 | AH10: =F10+K10 -> 42 | AI10: 22/24 | AJ10: =AF10/AG10 -> 0.9166666667 | AK10: 22/42 | AL10: =AF10/AH10 -> 0.5238095238
B11: Sato et al. (2018) | C11: 29496310 | D11: 13 | E11: 1 | F11: 34 | G11: =D11/(D11+E11) -> 0.9285714286 | H11: =D11/F11 -> 0.3823529412 | I11: 1 | J11: 0 | K11: 3 | L11: =I11/(I11+J11) -> 1 | M11: =I11/K11 -> 0.3333333333 | N11: N/A | S11: 0 | T11: 0 | U11: 67 | V11: 0 | W11: 0 | X11: 0 | Y11: 0 | Z11: 31 | AA11: 0 | AB11: 0 | AC11: N/A | AF11: =D11+I11+S11+X11 -> 14 | AG11: =D11+E11+I11 -> 15 | AH11: =F11+K11+U11+Z11 -> 135 | AI11: 14/15 | AJ11: =AF11/AG11 -> 0.9333333333 | AK11: 14/135 | AL11: =AF11/AH11 -> 0.1037037037
B12: Oyama et al. (2018) | C12: 30053869 | D12: 11 | E12: 1 | F12: 35 | G12: =D12/(D12+E12) -> 0.9166666667 | H12: =D12/F12 -> 0.3142857143 | I12: 2 | J12: 0 | K12: 4 | L12: =I12/(I12+J12) -> 1 | M12: =I12/K12 -> 0.5 | N12: N/A | S12: N/A | X12: N/A | AC12: N/A | AF12: =D12+I12 -> 13 | AG12: =D12+E12+I12 -> 14 | AH12: =F12+K12 -> 39 | AI12: 13/34 | AJ12: 0.9285714286 | AK12: 13/39 | AL12: 0.3333333333
B13: McLean et al. (2022) | C13: 36480093 | D13: N/A | I13: N/A | N13: 3 | O13: 0 | P13: 15 | Q13: =N13/N13+O13 -> 1 | R13: =N13/P13 -> 0.2 | S13: N/A | X13: N/A | AC13: 3 | AD13: 0 | AE13: 15 | AF13: 3 | AG13: 3 | AH13: 15 | AI13: 3/3 | AJ13: =AF13/AG13 -> 1 | AK13: 3/15 | AL13: =AF13/AH13 -> 0.2
B14: Wong et al. (2024) | C14: Preprint: https://doi.org/10.1101/2024.10.21.619442 | D14: 25 | E14: 0 | F14: 32 | G14: =D14/(D14+E14) -> 1 | H14: =D14/F14 -> 0.78125 | I14: 1 | J14: 0 | K14: 7 | L14: =I14/(I14+J14) -> 1 | M14: =I14/K14 -> 0.1428571429 | N14: N/A | S14: N/A | X14: N/A | AC14: N/A | AF14: =D14+I14 -> 26 | AG14: =D14+I14 -> 26 | AH14: =F14+K14 -> 39 | AI14: 26/26 | AJ14: =AF14/AG14 -> 1 | AK14: 26/39 | AL14: =AF14/AH14 -> 0.6666666667
A15: CTNNB1 var not specified | B15: Cavalcante et al. (2018) | C15: 29577164 | D15: N/A | I15: N/A | N15: N/A | S15: Specific var. not provided | T15: 7 | U15: 24 | V15: N/A | W15: N/A | X15: Specific var. not provided | Y15: 6 | Z15: 24 | AA15: N/A | AB15: N/A | AC15: N/A | AF15: 0 | AG15: =T15+Y15 -> 13 | AH15: =U15+Z15 -> 48 | AI15: N/A | AJ15: N/A | AK15: N/A | AL15: N/A
A16: Papers with CTNNB1 var other than I35T | B16: Ho et al. (2013) | C16: 23685749 | D16: N/A | I16: N/A | N16: N/A | S16: 0 | T16: 1 | U16: 60 | V16: 0 | W16: 0 | X16: N/A | AC16: N/A | AF16: 0 | AG16: 1 | AH16: 60 | AI16: 0/1 | AJ16: 0 | AK16: 0/60 | AL16: 0
B17: Wang et al. (2016) | C17: 27334835 | D17: N/A | I17: N/A | N17: N/A | S17: N/A | X17: N/A | AC17: 0 | AD17: 1 | AE17: 149 | AF17: 0 | AG17: 1 | AH17: 149 | AI17: 0/1 | AJ17: 0 | AK17: 0/149 | AL17: 0
B18: Zehir et al. (2017) | C18: 28481359 | D18: N/A | I18: N/A | N18: N/A | S18: N/A | X18: N/A | AC18: 0 | AD18: 1 | AE18: 113 | AF18: 0 | AG18: 1 | AH18: 113 | AI18: 0/1 | AJ18: 0 | AK18: 0/113 | AL18: 0
B19: Dalin et al. (2016) | C19: 27103403 | D19: N/A | I19: N/A | N19: N/A | S19: N/A | X19: N/A | AC19: 0 | AD19: 1 (2 var in 1 sample) | AE19: 31 | AF19: 0 | AG19: 1 | AH19: 31 | AI19: 0/1 | AJ19: 0 | AK19: 0/31 | AL19: 0 | AM19: Samples with CTNNB1 var/Grand total of samples tested
A20: Total | D20: =SUM(D6,D8,D10,D9,D11,D12,D14) -> 88 | E20: =SUM(E6,E8,E10,E9,E11,E12,E14) -> 5 | F20: =SUM(F6,F8,F10,F9,F11,F12,F14) -> 176 | G20: =D20/(D20+E20) -> 0.9462365591 | H20: =D20/F20 -> 0.5 | I20: =SUM(I7:I12,I14) -> 4 | J20: =SUM(J7:J12,J14) -> 0 | K20: =SUM(K7:K12,K14) -> 30 | L20: =I20/(I20+J20) -> 1 | M20: =I20/K20 -> 0.1333333333 | N20: 3 | O20: 0 | P20: 15 | Q20: =N20/N20+O20 -> 1 | R20: =N20/P20 -> 0.2 | S20: =SUM(S4,S5,S11,S16) -> 2 | T20: =SUM(T4,T5,T11,T16,T15) -> 8 | U20: =SUM(U4,U5,U11,U16,U15) -> 194 | V20: =S20/T20 -> 0.25 | W20: =S20/U20 -> 0.01030927835 | X20: 0 | Y20: 6 | Z20: =SUM(Z11,Z15) -> 55 | AA20: =X20/Y20 -> 0 | AB20: =X20/Z20 -> 0 | AC20: 1 | AD20: 3 | AE20: =SUM(AE7,AE13,AE17,AE18,AE19) -> 388 | AF20: =SUM(AF4:AF19) -> 98 | AG20: =SUM(AG4:AG19) -> 120 | AH20: =SUM(AH4:AH19) -> 843 | AI20: 98/120 | AJ20: =AF20/AG20 -> 0.8166666667 | AK20: 98/843 | AL20: =AF20/AH20 -> 0.1162514828 | AM20: 120/843 | AN20: =AG20/AH20 -> 0.1423487544

Sheet Table S3
B1: Table S3. Number of 20-AAR domains retained in family's tumours
B2: Tumour | C2: Number of 20-AARs
C3: Germline | D3: Somatic | E3: Total
A4: Proband | B4: BCA | C4: 3 | D4: 0 | E4: 3
B5: Parotid BCACs (bilateral) | C5: 3 | D5: 3 | E5: 6
B6: Submandibular BCAC | C6: 3 | D6: 7 | E6: 10
B7: Colon polyp | C7: 3 | D7: 1 | E7: 4
A8: Sister | B8: BCA | C8: 3 | D8: 4 | E8: 7
A9: Mother | B9: Colon polyp | C9: 3 | D9: 0 | E9: 3
B10: CRC | C10: 3 | D10: 2 | E10: 5

Sheet Table S4
A1: Table S4. Contingency table of CTNNB1 I35T in salivary gland tumours
B2: Salivary Glands | C2: Other sites
A3: CTNNB1 I35T | B3: 72 | C3: 5 | E3: p value (c-square test) <2.2 x 10-16
A4: Other CTNNB1 variants seen in salivary glands | B4: 22 | C4: 91

Sheet Table S5
C1: Table S5. List of CTNNB1 variants other than I35T seen in salivary glands (SG)
B2: Gene | C2: CDS Mutation | D2: AA Mutation | E2: Number of cases reported in SG | F2: Number of cases reported in other tissues (COSMIC) | G2: COSMIC Reference | H2: References | I2: PubMed ID
A3: 1 | B3: CTNNB1 | C3: c.121A>C | D3: p.T41P | E3: 2 | F3: 8 | G3: COSM5688; COSM36385 | H3: Kawahara et al.; Sato et al. | I3: 1585387; 29496310
A4: 2 | B4: CTNNB1 | C4: c.82C>T | D4: p.Q28P | E4: 1 | F4: 0 | G4: N/A | H4: Lee et al. | I4: 29224720
A5: 3 | B5: CTNNB1 | C5: c.123_125del | D5: p.T42* | E5: 1 | F5: 0 | G5: N/A
A6: 4 | B6: CTNNB1 | C6: c.107A>C | D6: p.H36P | E6: 1 | F6: 71 | G6: COSM5678; COSM29403 | H6: Oyama et al. | I6: 30053869
A7: 5 | B7: CTNNB1 | C7: c.1982G>T | D7: p.R661L | E7: 1 | F7: 0 | G7: COSM1644523 | H7: Ho et al. | I7: 23685749
A8: 6 | B8: CTNNB1 | C8: c.770C>T | D8: p.T257I | E8: 1 | F8: 5 | G8: COSM188059 | H8: Wang et al. | I8: 27334835
A9: 7 | B9: CTNNB1 | C9: c.998A>T | D9: p.Y333F | E9: 1 | F9: 7 | G9: COSM3738527 | H9: Zehir et al. | I9: 28481359
A10: 8 | B10: CTNNB1 | C10: c.1789C>A | D10: p.P597T | E10: 1 | F10: 0 | G10: COSM5988212 | H10: Dalin et al. | I10: 27103403
A11: 9 | B11: CTNNB1 | C11: c.2dup | D11: p.M1? | F11: 0 | G11: COSM5988211
A12: 10 | B12: CTNNB1 | C12: Not specified | E12: 13 | F12: N/A | G12: N/A | H12: Cavalcante et al. | I12: 29577164
A13: Total numbers used in contigency table (Table S4) | E13: =SUM(E3:E12) -> 22 | F13: =SUM(F3:F12) -> 91
